fUST/lending_fUST_20240819
["ID","MTS","AMOUNT","RATE_DAILY","PERIOD"]
[335236565,1724005849123,-1155.878446,0.00016438,2]
[335236566,1724005849132,-1155.878446,0.00016438,2]
[335236567,1724005849145,-1155.878446,0.00016438,2]
[335236568,1724005849157,-1155.878446,0.00016438,2]
[335236569,1724005849167,-513.21989605,0.00016438,2]
[335236570,1724005849177,-643.29991534,0.00016438,2]
[335236571,1724005849187,-500.0,0.00016438,2]
[335236572,1724005849196,-500.0,0.00016438,2]
[335236573,1724005849206,-500.0,0.00016438,2]
[335236574,1724005849215,-504.05644384,0.00016438,2]
[335236575,1724005849228,-506.33476054,0.00016438,2]
[335236576,1724005849238,-500.0,0.00016438,2]
[335236577,1724005849248,-509.9356731,0.00016438,2]
[335236578,1724005849259,-500.0,0.00016438,2]
[335236579,1724005849269,-1016.59,0.00016438,2]
[335236580,1724005849279,-500.0,0.00016438,2]
[335236581,1724005849291,-505.09928173,0.00016438,2]
[335236582,1724005849300,-500.0,0.00016438,2]
[335236583,1724005849311,-509.92772392,0.00016438,2]
[335236584,1724005849320,-500.0,0.00016438,2]
[335236585,1724005849330,-1212.69,0.00016438,2]
[335236586,1724005849340,-500.0,0.00016438,2]
[335236587,1724005849350,-151.0,0.00016438,2]
[335236588,1724005849361,-151.0,0.00016438,2]
[335236589,1724005849370,-151.0,0.00016438,2]
[335236590,1724005849380,-151.0,0.00016438,2]
[335236591,1724005849389,-500.0,0.00016438,2]
[335236592,1724005849399,-151.0,0.00016438,2]
[335236593,1724005849408,-151.0,0.00016438,2]
[335236594,1724005849418,-500.0,0.00016438,2]
[335236595,1724005849428,-151.0,0.00016438,2]
[335236596,1724005849437,-151.0,0.00016438,2]
[335236597,1724005849447,-1043.99,0.00016438,2]
[335236598,1724005849457,-500.0,0.00016438,2]
[335236599,1724005849466,-249.516658,0.00016438,2]
[335236600,1724005849476,-500.0,0.00016438,2]
[335236601,1724005849486,-500.0,0.00016438,2]
[335236602,1724005849495,-500.0,0.00016438,2]
[335236603,1724005849505,-500.0,0.00016438,2]
[335236604,1724005849514,-500.0,0.00016438,2]
[335236605,1724005849524,-500.0,0.00016438,2]
[335236606,1724005849534,-505.68019105,0.00016438,2]
[335236607,1724005849544,-500.0,0.00016438,2]
[335236608,1724005849553,-500.0,0.00016438,2]
[335236609,1724005849564,-500.0,0.00016438,2]
[335236610,1724005849573,-500.0,0.00016438,2]
[335236611,1724005849583,-500.0,0.00016438,2]
[335236612,1724005849592,-500.0,0.00016438,2]
[335236613,1724005849602,-1784.382667,0.00016438,2]
[335236614,1724005849613,-1784.382667,0.00016438,2]
[335236615,1724005849621,-1784.382667,0.00016438,2]
[335236616,1724005849630,-1784.382667,0.00016438,2]
[335236617,1724005849640,-1784.382667,0.00016438,2]
[335236618,1724005849649,-500.0,0.00016438,2]
[335236619,1724005849658,-1784.382667,0.00016438,2]
[335236620,1724005849668,-1784.382667,0.00016438,2]
[335236621,1724005849679,-500.0,0.00016438,2]
[335236622,1724005849689,-1784.382667,0.00016438,2]
[335236623,1724005849699,-505.24353292,0.00016438,2]
[335236624,1724005849709,-1784.382667,0.00016438,2]
[335236625,1724005849718,-1784.382667,0.00016438,2]
[335236626,1724005849728,-1784.382667,0.00016438,2]
[335236627,1724005849738,-1784.382667,0.00016438,2]
[335236628,1724005849748,-1784.382667,0.00016438,2]
[335236629,1724005849758,-1784.382667,0.00016438,2]
[335236630,1724005849769,-504.66007728,0.00016438,2]
[335236631,1724005849778,-500.0,0.00016438,2]
[335236632,1724005849788,-500.0,0.00016438,2]
[335236633,1724005849799,-1015.96,0.00016438,2]
[335236634,1724005849809,-454.33912668,0.00016438,2]
[335236635,1724005849819,-500.0,0.00016438,2]
[335236636,1724005849830,-500.0,0.00016438,2]
[335236637,1724005849841,-500.0,0.00016438,2]
[335236638,1724005849852,-4145.13,0.00016438,2]
[335236639,1724005849862,-500.0,0.00016438,2]
[335236640,1724005849872,-500.0,0.00016438,2]
[335236641,1724005849881,-502.01994795,0.00016438,2]
[335236642,1724005849892,-505.51210129,0.00016438,2]
[335236643,1724005849902,-500.0,0.00016438,2]
[335236644,1724005849911,-500.0,0.00016438,2]
[335236645,1724005849922,-500.0,0.00016438,2]
[335236646,1724005849932,-500.0,0.00016438,2]
[335236647,1724005849943,-509.76833442,0.00016438,2]
[335236648,1724005849954,-151.0,0.00016438,2]
[335236649,1724005849964,-151.0,0.00016438,2]
[335236650,1724005849974,-151.0,0.00016438,2]
[335236651,1724005849985,-500.0,0.00016438,2]
[335236652,1724005849996,-212.899685,0.00016438,2]
[335236653,1724005850007,-154.376963,0.00016438,2]
[335236654,1724005850016,-212.899685,0.00016438,2]
[335236655,1724005850027,-212.899685,0.00016438,2]
[335236656,1724005850038,-500.0,0.00016438,2]
[335236657,1724005850050,-500.0,0.00016438,2]
[335236658,1724005850060,-212.899685,0.00016438,2]
[335236659,1724005850070,-212.899685,0.00016438,2]
[335236660,1724005850080,-1174.98,0.00016438,2]
[335236661,1724005850091,-212.899685,0.00016438,2]
[335236662,1724005850101,-212.899685,0.00016438,2]
[335236663,1724005850112,-500.0,0.00016438,2]
[335236664,1724005850121,-500.0,0.00016438,2]
[335236665,1724005850132,-212.899685,0.00016438,2]
[335236666,1724005850142,-594.0,0.00016438,2]
[335236667,1724005850157,-212.899685,0.00016438,2]
[335236668,1724005850166,-212.899685,0.00016438,2]
[335236669,1724005850176,-212.899685,0.00016438,2]
[335236670,1724005850186,-212.899685,0.00016438,2]
[335236671,1724005850195,-212.899685,0.00016438,2]
[335236672,1724005850205,-212.899685,0.00016438,2]
[335236673,1724005850215,-500.0,0.00016438,2]
[335236674,1724005850225,-508.62149033,0.00016438,2]
[335236675,1724005850236,-151.0,0.00016438,2]
[335236676,1724005850247,-151.0,0.00016438,2]
[335236677,1724005850256,-151.0,0.00016438,2]
[335236678,1724005850266,-151.0,0.00016438,2]
[335236679,1724005850275,-151.0,0.00016438,2]
[335236680,1724005850284,-155.833677,0.00016438,2]
[335236681,1724005850294,-500.0,0.00016438,2]
[335236682,1724005850304,-500.0,0.00016438,2]
[335236683,1724005850314,-1052.8,0.00016438,2]
[335236684,1724005850323,-483.142611,0.00016438,2]
[335236685,1724005850333,-483.142611,0.00016438,2]
[335236686,1724005850343,-483.142611,0.00016438,2]
[335236687,1724005850444,-500.0,0.00016438,2]
[335236688,1724005850464,-483.142611,0.00016438,2]
[335236689,1724005850474,-483.142611,0.00016438,2]
[335236690,1724005850484,-483.142611,0.00016438,2]
[335236691,1724005850494,-500.0,0.00016438,2]
[335236692,1724005850503,-483.142611,0.00016438,2]
[335236693,1724005850513,-500.0,0.00016438,2]
[335236694,1724005850523,-5875.96,0.00016438,2]
[335236695,1724005850532,-483.142611,0.00016438,2]
[335236696,1724005850541,-483.142611,0.00016438,2]
[335236697,1724005850551,-500.0,0.00016438,2]
[335236698,1724005850560,-483.142611,0.00016438,2]
[335236699,1724005850569,-483.142611,0.00016438,2]
[335236700,1724005850579,-483.142611,0.00016438,2]
[335236701,1724005850588,-483.142611,0.00016438,2]
[335236702,1724005850598,-500.0,0.00016438,2]
[335236703,1724005850610,-483.142611,0.00016438,2]
[335236704,1724005850619,-249.65520324,0.00016438,2]
[335236705,1724005850629,-500.0,0.00016438,2]
[335236706,1724005850639,-500.0,0.00016438,2]
[335236707,1724005850648,-500.0,0.00016438,2]
[335236708,1724005850657,-500.0,0.00016438,2]
[335236709,1724005850666,-693.24,0.00016438,2]
[335236710,1724005850675,-500.0,0.00016438,2]
[335236711,1724005850685,-500.0,0.00016438,2]
[335236712,1724005850695,-151.0,0.00016438,2]
[335236713,1724005850708,-500.0,0.00016438,2]
[335236714,1724005850718,-151.0,0.00016438,2]
[335236715,1724005850727,-507.75576917,0.00016438,2]
[335236716,1724005850738,-151.0,0.00016438,2]
[335236717,1724005850747,-154.324442,0.00016438,2]
[335236718,1724005850757,-666.1,0.00016438,2]
[335236719,1724005850766,-538.73,0.00016438,2]
[335236720,1724005850777,-500.0,0.00016438,2]
[335236721,1724005850788,-500.0,0.00016438,2]
[335236722,1724005850798,-2818.67,0.00016438,2]
[335236723,1724005850808,-500.0,0.00016438,2]
[335236724,1724005850818,-500.0,0.00016438,2]
[335236725,1724005850828,-500.0,0.00016438,2]
[335236726,1724005850840,-500.0,0.00016438,2]
[335236727,1724005850850,-500.0,0.00016438,2]
[335236728,1724005850859,-503.76485255,0.00016438,2]
[335236729,1724005850868,-539.27040279,0.00016438,2]
[335236730,1724005850878,-505.48558456,0.00016438,2]
[335236731,1724005850887,-1544.478139,0.00016438,2]
[335236732,1724005850898,-1544.478139,0.00016438,2]
[335236733,1724005850908,-1862.25,0.00016438,2]
[335236734,1724005850919,-1544.478139,0.00016438,2]
[335236735,1724005850929,-500.0,0.00016438,2]
[335236736,1724005850940,-1544.478139,0.00016438,2]
[335236737,1724005850951,-1544.478139,0.00016438,2]
[335236738,1724005850961,-1544.478139,0.00016438,2]
[335236739,1724005850972,-500.0,0.00016438,2]
[335236740,1724005850983,-1544.478139,0.00016438,2]
[335236741,1724005850994,-500.0,0.00016438,2]
[335236742,1724005851005,-514.57750072,0.00016438,2]
[335236743,1724005851015,-500.0,0.00016438,2]
[335236744,1724005851026,-1544.478139,0.00016438,2]
[335236745,1724005851039,-1544.478139,0.00016438,2]
[335236746,1724005851048,-1544.478139,0.00016438,2]
[335236747,1724005851058,-571.87,0.00016438,2]
[335236748,1724005851069,-1544.478139,0.00016438,2]
[335236749,1724005851079,-1544.478139,0.00016438,2]
[335236750,1724005851089,-1544.478139,0.00016438,2]
[335236751,1724005851099,-1544.478139,0.00016438,2]
[335236752,1724005851110,-500.0,0.00016438,2]
[335236753,1724005851120,-597.88,0.00016438,2]
[335236754,1724005851131,-500.0,0.00016438,2]
[335236755,1724005851143,-500.0,0.00016438,2]
[335236756,1724005851155,-508.68572364,0.00016438,2]
[335236757,1724005851166,-540.3,0.00016438,2]
[335236758,1724005851175,-581.76,0.00016438,2]
[335236759,1724005851184,-864.0,0.00016438,2]
[335236760,1724005851195,-500.0,0.00016438,2]
[335236761,1724005851206,-151.0,0.00016438,2]
[335236762,1724005851217,-156.655626,0.00016438,2]
[335236763,1724005851229,-500.0,0.00016438,2]
[335236764,1724005851239,-500.0,0.00016438,2]
[335236765,1724005851249,-500.0,0.00016438,2]
[335236766,1724005851259,-500.0,0.00016438,2]
[335236767,1724005851269,-379.85518857,0.00016438,2]
[335236768,1724005851280,-1947.56,0.00016438,2]
[335236769,1724005851289,-500.0,0.00016438,2]
[335236770,1724005851298,-500.0,0.00016438,2]
[335236771,1724005851308,-500.0,0.00016438,2]
[335236772,1724005851318,-1152.69,0.00016438,2]
[335236773,1724005851328,-500.0,0.00016438,2]
[335236774,1724005851338,-500.0,0.00016438,2]
[335236775,1724005851348,-500.0,0.00016438,2]
[335236776,1724005851358,-234.63462279,0.00016438,2]
[335236777,1724005851369,-166.30995301,0.00016438,2]
[335236778,1724005851380,-500.0,0.00016438,2]
[335236779,1724005851392,-1090.36,0.00016438,2]
[335236780,1724005851402,-602.24,0.00016438,2]
[335236781,1724005851413,-500.0,0.00016438,2]
[335236782,1724005851423,-500.0,0.00016438,2]
[335236783,1724005851434,-500.0,0.00016438,2]
[335236784,1724005851444,-867.87,0.00016438,2]
[335236785,1724005851455,-1021.12,0.00016438,2]
[335236786,1724005851464,-512.46796529,0.00016438,2]
[335236787,1724005851475,-500.0,0.00016438,2]
[335236788,1724005851486,-500.0,0.00016438,2]
[335236789,1724005851497,-1364.310846,0.00016438,2]
[335236790,1724005851508,-1364.310846,0.00016438,2]
[335236791,1724005851518,-1364.310846,0.00016438,2]
[335236792,1724005851527,-1364.310846,0.00016438,2]
[335236793,1724005851537,-1364.310846,0.00016438,2]
[335236794,1724005851545,-1364.310846,0.00016438,2]
[335236795,1724005851555,-1364.310846,0.00016438,2]
[335236796,1724005851564,-500.0,0.00016438,2]
[335236797,1724005851575,-1364.310846,0.00016438,2]
[335236798,1724005851587,-1858.817725,0.00016438,2]
[335236799,1724005851597,-1364.310846,0.00016438,2]
[335236800,1724005851608,-1858.817725,0.00016438,2]
[335236801,1724005851618,-1364.310846,0.00016438,2]
[335236802,1724005851629,-1858.817725,0.00016438,2]
[335236803,1724005851639,-1364.310846,0.00016438,2]
[335236804,1724005851649,-1364.310846,0.00016438,2]
[335236805,1724005851660,-1033.05,0.00016438,2]
[335236806,1724005851672,-500.0,0.00016438,2]
[335236807,1724005851682,-1858.817725,0.00016438,2]
[335236808,1724005851693,-500.0,0.00016438,2]
[335236809,1724005851704,-1364.310846,0.00016438,2]
[335236810,1724005851716,-7055.48,0.00016438,2]
[335236811,1724005851727,-1858.817725,0.00016438,2]
[335236812,1724005851737,-1364.310846,0.00016438,2]
[335236813,1724005851746,-1858.817725,0.00016438,2]
[335236814,1724005851757,-1858.817725,0.00016438,2]
[335236815,1724005851768,-500.0,0.00016438,2]
[335236816,1724005851781,-500.0,0.00016438,2]
[335236817,1724005851792,-1858.817725,0.00016438,2]
[335236818,1724005851804,-1858.817725,0.00016438,2]
[335236819,1724005851816,-500.0,0.00016438,2]
[335236820,1724005851827,-1858.817725,0.00016438,2]
[335236821,1724005851838,-1858.817725,0.00016438,2]
[335236822,1724005851849,-1858.817725,0.00016438,2]
[335236823,1724005851861,-521.75951476,0.00016438,2]
[335236824,1724005851871,-379.65994937,0.00016438,2]
[335236825,1724005851881,-500.0,0.00016438,2]
[335236826,1724005851891,-1858.817725,0.00016438,2]
[335236827,1724005851902,-1858.817725,0.00016438,2]
[335236828,1724005851912,-500.0,0.00016438,2]
[335236829,1724005851922,-2133.23,0.00016438,2]
[335236830,1724005851932,-500.0,0.00016438,2]
[335236831,1724005851941,-500.0,0.00016438,2]
[335236832,1724005851950,-651.65,0.00016438,2]
[335236833,1724005851959,-500.0,0.00016438,2]
[335236834,1724005851968,-500.0,0.00016438,2]
[335236835,1724005851978,-500.0,0.00016438,2]
[335236836,1724005851987,-919.11,0.00016438,2]
[335236837,1724005851996,-502.35481281,0.00016438,2]
[335236838,1724005852005,-501.7969771,0.00016438,2]
[335236839,1724005852014,-500.0,0.00016438,2]
[335236840,1724005852023,-511.64760546,0.00016438,2]
[335236841,1724005852032,-508.26415308,0.00016438,2]
[335236842,1724005852042,-500.0,0.00016438,2]
[335236843,1724005852052,-583.33,0.00016438,2]
[335236844,1724005852062,-500.0,0.00016438,2]
[335236845,1724005852072,-854.52,0.00016438,2]
[335236846,1724005852082,-884.26,0.00016438,2]
[335236847,1724005852092,-529.73,0.00016438,2]
[335236848,1724005852102,-500.0,0.00016438,2]
[335236849,1724005852113,-500.0,0.00016438,2]
[335236850,1724005852129,-500.0,0.00016438,2]
[335236851,1724005852138,-500.0,0.00016438,2]
[335236852,1724005852151,-2766.47,0.00016438,2]
[335236853,1724005852160,-677.44,0.00016438,2]
[335236854,1724005852169,-1236.46,0.00016438,2]
[335236855,1724005852178,-500.0,0.00016438,2]
[335236856,1724005852188,-500.0,0.00016438,2]
[335236857,1724005852198,-500.0,0.00016438,2]
[335236858,1724005852207,-672.81,0.00016438,2]
[335236859,1724005852218,-470.018417,0.00016438,2]
[335236860,1724005852231,-580.3,0.00016438,2]
[335236861,1724005852242,-470.018417,0.00016438,2]
[335236862,1724005852254,-470.018417,0.00016438,2]
[335236863,1724005852264,-470.018417,0.00016438,2]
[335236864,1724005852275,-470.018417,0.00016438,2]
[335236865,1724005852284,-470.018417,0.00016438,2]
[335236866,1724005852295,-500.0,0.00016438,2]
[335236867,1724005852306,-470.018417,0.00016438,2]
[335236868,1724005852317,-500.0,0.00016438,2]
[335236869,1724005852327,-837.87,0.00016438,2]
[335236870,1724005852336,-500.0,0.00016438,2]
[335236871,1724005852345,-470.018417,0.00016438,2]
[335236872,1724005852355,-751.19,0.00016438,2]
[335236873,1724005852366,-470.018417,0.00016438,2]
[335236874,1724005852375,-500.0,0.00016438,2]
[335236875,1724005852384,-500.0,0.00016438,2]
[335236876,1724005852394,-470.018417,0.00016438,2]
[335236877,1724005852404,-470.018417,0.00016438,2]
[335236878,1724005852414,-470.018417,0.00016438,2]
[335236879,1724005852425,-470.018417,0.00016438,2]
[335236880,1724005852527,-470.018417,0.00016438,2]
[335236881,1724005852536,-500.0,0.00016438,2]
[335236882,1724005852545,-954.92,0.00016438,2]
[335236883,1724005852555,-1019.02,0.00016438,2]
[335236884,1724005852564,-500.0,0.00016438,2]
[335236885,1724005852574,-500.0,0.00016438,2]
[335236886,1724005852583,-500.0,0.00016438,2]
[335236887,1724005852592,-500.0,0.00016438,2]
[335236888,1724005852601,-699.72,0.00016438,2]
[335236889,1724005852612,-759.09,0.00016438,2]
[335236890,1724005852622,-151.682741,0.00016438,2]
[335236891,1724005852631,-358.63815817,0.00016438,2]
[335236892,1724005852641,-500.0,0.00016438,2]
[335236893,1724005852650,-750.43,0.00016438,2]
[335236894,1724005852659,-500.0,0.00016438,2]
[335236895,1724005852668,-500.0,0.00016438,2]
[335236896,1724005852678,-798.58,0.00016438,2]
[335236897,1724005852687,-328.230358,0.00016438,2]
[335236898,1724005852697,-500.0,0.00016438,2]
[335236899,1724005852706,-328.230358,0.00016438,2]
[335236900,1724005852715,-328.230358,0.00016438,2]
[335236901,1724005852724,-328.230358,0.00016438,2]
[335236902,1724005852733,-328.230358,0.00016438,2]
[335236903,1724005852743,-500.0,0.00016438,2]
[335236904,1724005852753,-328.230358,0.00016438,2]
[335236905,1724005852762,-642.76,0.00016438,2]
[335236906,1724005852772,-328.230358,0.00016438,2]
[335236907,1724005852781,-328.230358,0.00016438,2]
[335236908,1724005852791,-500.0,0.00016438,2]
[335236909,1724005852801,-500.0,0.00016438,2]
[335236910,1724005852811,-249.470732,0.00016438,2]
[335236911,1724005852821,-500.0,0.00016438,2]
[335236912,1724005852831,-249.470732,0.00016438,2]
[335236913,1724005852840,-328.230358,0.00016438,2]
[335236914,1724005852849,-500.0,0.00016438,2]
[335236915,1724005852858,-500.0,0.00016438,2]
[335236916,1724005852869,-328.230358,0.00016438,2]
[335236917,1724005852878,-249.470732,0.00016438,2]
[335236918,1724005852888,-328.230358,0.00016438,2]
[335236919,1724005852899,-500.0,0.00016438,2]
[335236920,1724005852910,-249.470732,0.00016438,2]
[335236921,1724005852920,-328.230358,0.00016438,2]
[335236922,1724005852930,-249.470732,0.00016438,2]
[335236923,1724005852940,-500.0,0.00016438,2]
[335236924,1724005852950,-328.230358,0.00016438,2]
[335236925,1724005852959,-249.470732,0.00016438,2]
[335236926,1724005852969,-500.0,0.00016438,2]
[335236927,1724005852978,-328.230358,0.00016438,2]
[335236928,1724005852988,-249.470732,0.00016438,2]
[335236929,1724005852998,-880.39,0.00016438,2]
[335236930,1724005853007,-500.0,0.00016438,2]
[335236931,1724005853017,-500.0,0.00016438,2]
[335236932,1724005853026,-542.23948546,0.00016438,2]
[335236933,1724005853036,-814.14,0.00016438,2]
[335236934,1724005853045,-249.470732,0.00016438,2]
[335236935,1724005853055,-500.0,0.00016438,2]
[335236936,1724005853064,-249.470732,0.00016438,2]
[335236937,1724005853074,-249.470732,0.00016438,2]
[335236938,1724005853084,-500.0,0.00016438,2]
[335236939,1724005853094,-151.0,0.00016438,2]
[335236940,1724005853103,-249.470732,0.00016438,2]
[335236941,1724005853113,-500.0,0.00016438,2]
[335236942,1724005853123,-582.77032,0.00016438,2]
[335236943,1724005853132,-151.0,0.00016438,2]
[335236944,1724005853142,-249.470732,0.00016438,2]
[335236945,1724005853155,-151.0,0.00016438,2]
[335236946,1724005853165,-582.77032,0.00016438,2]
[335236947,1724005853175,-249.470732,0.00016438,2]
[335236948,1724005853185,-151.0,0.00016438,2]
[335236949,1724005853195,-249.470732,0.00016438,2]
[335236950,1724005853206,-582.77032,0.00016438,2]
[335236951,1724005853215,-432.03554059,0.00016438,2]
[335236952,1724005853226,-582.77032,0.00016438,2]
[335236953,1724005853238,-500.0,0.00016438,2]
[335236954,1724005853248,-582.77032,0.00016438,2]
[335236955,1724005853258,-508.99906591,0.00016438,2]
[335236956,1724005853267,-500.0,0.00016438,2]
[335236957,1724005853279,-500.0,0.00016438,2]
[335236958,1724005853288,-582.77032,0.00016438,2]
[335236959,1724005853298,-582.77032,0.00016438,2]
[335236960,1724005853308,-151.0,0.00016438,2]
[335236961,1724005853318,-500.0,0.00016438,2]
[335236962,1724005853328,-829.06,0.00016438,2]
[335236963,1724005853337,-582.77032,0.00016438,2]
[335236964,1724005853347,-167.27726661,0.00016438,2]
[335236965,1724005853357,-582.77032,0.00016438,2]
[335236966,1724005853368,-757.9,0.00016438,2]
[335236967,1724005853377,-582.77032,0.00016438,2]
[335236968,1724005853387,-582.77032,0.00016438,2]
[335236969,1724005853398,-151.0,0.00016438,2]
[335236970,1724005853408,-582.77032,0.00016438,2]
[335236971,1724005853419,-151.0,0.00016438,2]
[335236972,1724005853430,-582.77032,0.00016438,2]
[335236973,1724005853441,-183.575114,0.00016438,2]
[335236974,1724005853451,-582.77032,0.00016438,2]
[335236975,1724005853460,-482.46625134,0.00016438,2]
[335236976,1724005853470,-500.0,0.00016438,2]
[335236977,1724005853482,-745.57,0.00016438,2]
[335236978,1724005853492,-500.0,0.00016438,2]
[335236979,1724005853502,-1990.91,0.00016438,2]
[335236980,1724005853513,-500.0,0.00016438,2]
[335236981,1724005853523,-500.0,0.00016438,2]
[335236982,1724005853533,-500.0,0.00016438,2]
[335236983,1724005853543,-500.0,0.00016438,2]
[335236984,1724005853555,-500.0,0.00016438,2]
[335236985,1724005853566,-500.0,0.00016438,2]
[335236986,1724005853577,-500.0,0.00016438,2]
[335236987,1724005853586,-500.0,0.00016438,2]
[335236988,1724005853598,-500.0,0.00016438,2]
[335236989,1724005853607,-500.0,0.00016438,2]
[335236990,1724005853617,-500.0,0.00016438,2]
[335236991,1724005853627,-500.0,0.00016438,2]
[335236992,1724005853636,-500.0,0.00016438,2]
[335236993,1724005853647,-500.0,0.00016438,2]
[335236994,1724005853657,-854.51,0.00016438,2]
[335236995,1724005853667,-466.80532712,0.00016438,2]
[335236996,1724005853677,-6465.97,0.00016438,2]
[335236997,1724005853688,-6465.97,0.00016438,2]
[335236998,1724005853697,-6465.97,0.00016438,2]
[335236999,1724005853706,-6465.97,0.00016438,2]
[335237000,1724005853717,-6465.97,0.00016438,2]
[335237001,1724005853728,-6465.97,0.00016438,2]
[335237002,1724005853740,-151.0,0.00016438,2]
[335237003,1724005853751,-151.0,0.00016438,2]
[335237004,1724005853763,-266.672088,0.00016438,2]
[335237005,1724005853774,-961.7411062,0.00016455,2]
[335237006,1724005853784,-200.0,0.00016473,2]
[335237007,1724005853794,-170.14444841,0.00016473,2]
[335237008,1724005853804,-200.0,0.00016473,2]
[335237009,1724005853816,-200.0,0.00016473,2]
[335237010,1724005853828,-532.89220378,0.000165,2]
[335237011,1724005853838,-155.0,0.0001652,2]
[335237012,1724005853850,-1000.0,0.0001653,2]
[335237013,1724005853860,-1000.0,0.0001654,2]
[335237014,1724005853870,-600.0,0.0001657,2]
[335237015,1724005853879,-1414.0,0.00016582,2]
[335237016,1724005853889,-8341.909,0.00016582,2]
[335237017,1724005853900,-285.225,0.00016582,2]
[335237018,1724005853911,-521.0,0.00016582,2]
[335237019,1724005853921,-1137.85865784,0.00016611,2]
[335237020,1724005853931,-242.9856,0.00016628,2]
[335237021,1724005853941,-150.0,0.00016636,2]
[335237022,1724005853952,-150.0,0.00016636,2]
[335237023,1724005853961,-150.0,0.00016636,2]
[335237024,1724005853971,-150.0,0.00016636,2]
[335237025,1724005853981,-150.0,0.00016636,2]
[335237026,1724005853991,-1000.0,0.00016669,2]
[335237027,1724005854002,-1000.0,0.00016682,2]
[335237028,1724005854013,-1000.0,0.00016691,2]
[335237029,1724005854023,-2500.0,0.000167,2]
[335237030,1724005854032,-151.0,0.00016708,2]
[335237031,1724005854042,-151.0,0.00016708,2]
[335237032,1724005854054,-464.391783,0.00016708,2]
[335237033,1724005854064,-464.391783,0.00016708,2]
[335237034,1724005854074,-967.362646,0.00016708,2]
[335237035,1724005854085,-967.362646,0.00016708,2]
[335237036,1724005854096,-151.0,0.00016708,2]
[335237037,1724005854107,-225.418361,0.00016712,2]
[335237038,1724005854120,-500.0,0.00016712,2]
[335237039,1724005854130,-500.0,0.00016712,2]
[335237040,1724005854139,-500.0,0.00016712,2]
[335237041,1724005854150,-509.52729507,0.00016712,2]
[335237042,1724005854162,-500.0,0.00016712,2]
[335237043,1724005854173,-501.93888408,0.00016712,2]
[335237044,1724005854182,-736.4,0.00016712,2]
[335237045,1724005854194,-500.0,0.00016712,2]
[335237046,1724005854203,-640.56,0.00016712,2]
[335237047,1724005854214,-571.39,0.00016712,2]
[335237048,1724005854224,-500.0,0.00016712,2]
[335237049,1724005854235,-500.0,0.00016712,2]
[335237050,1724005854245,-522.51656014,0.00016712,2]
[335237051,1724005854257,-500.0,0.00016712,2]
[335237052,1724005854268,-151.0,0.00016712,2]
[335237053,1724005854278,-151.0,0.00016712,2]
[335237054,1724005854288,-151.0,0.00016712,2]
[335237055,1724005854299,-268.896075,0.00016712,2]
[335237056,1724005854310,-500.0,0.00016712,2]
[335237057,1724005854413,-500.0,0.00016712,2]
[335237058,1724005854423,-501.05059056,0.00016712,2]
[335237059,1724005854433,-500.0,0.00016712,2]
[335237060,1724005854444,-502.63474682,0.00016712,2]
[335237061,1724005854453,-500.0,0.00016712,2]
[335237062,1724005854462,-383.34210581,0.00016712,2]
[335237063,1724005854471,-151.0,0.00016712,2]
[335237064,1724005854480,-500.0,0.00016712,2]